bitfinex/quotes_ETHUSD_20250605
["timestamp","ask_amount","ask_price","bid_price","bid_amount"]
[1749164739421,7.06416407,2432.2,2431.9,4.11201118]
[1749164739746,7.06416407,2432.2,2432.0,4.11175065]
[1749164739956,7.06416407,2432.2,2431.9,4.11201118]
[1749164739957,0.55,2432.2,2432.1,4.11167303]
[1749164740113,0.55,2432.2,2432.0,4.11176693]
[1749164740308,23.06416407,2432.2,2431.8,4.11208708]
[1749164740519,2.09115515,2432.1,2431.8,4.11208708]
[1749164740727,9.99115515,2432.1,2431.8,4.11208708]
[1749164741234,0.55,2432.0,2431.6,4.11237488]
[1749164741430,1.50316046,2431.9,2431.6,4.1125185]
[1749164741712,8.3861,2431.8,2431.7,4.11234938]
[1749164749354,7.572,2431.8,2431.7,4.11234938]
[1749164749550,0.93027154,2431.8,2431.7,4.11234938]
[1749164749750,8.51591195,2431.8,2431.7,4.11234938]
[1749164749953,19.8516,2431.7,2430.8,0.7922]
[1749164750138,7.4145457,2431.4,2430.4,0.7922]
[1749164750341,31.10808189,2431.3,2430.8,4.11379968]
[1749164750664,2.7362471,2431.2,2431.1,4.11336432]
[1749164750823,2.1862471,2431.2,2431.1,4.11336432]
[1749164751342,0.97097215,2431.3,2431.2,4.11319512]
[1749164751550,7.9,2431.6,2431.5,4.11268764]
[1749164751741,14.907,2431.6,2431.5,4.11268764]
[1749164751926,15.88052295,2431.6,2431.5,4.11268764]
[1749164752153,17.46857525,2431.6,2431.5,4.11268764]
[1749164752354,17.84887042,2431.6,2431.5,4.11268764]
[1749164752554,16.25981731,2431.6,2431.5,4.11268764]
[1749164752733,16.25981144,2431.6,2431.5,4.11268764]
[1749164752933,16.2598106,2431.6,2431.5,4.11268764]
[1749164753371,16.49498094,2431.6,2431.5,4.11268764]
[1749164753685,15.87952295,2431.6,2431.5,4.11268764]
[1749164754278,16.26417393,2431.6,2431.5,20.11268764]
[1749164754472,15.87952295,2431.6,2431.5,20.11268764]
[1749164754650,17.47944974,2431.6,2431.5,20.11268764]
[1749164754850,19.5759075,2431.6,2431.5,16.0]
[1749164755062,18.36074696,2431.6,2431.5,15.7325102]
[1749164755254,19.9908973,2431.6,2431.5,15.7325102]
[1749164755450,20.22176103,2431.6,2431.5,15.7325102]
[1749164755656,20.42117459,2431.6,2431.5,19.84519784]
[1749164755864,20.42117459,2431.6,2431.5,15.7325102]
[1749164756069,3.022,2431.1,2430.2,0.8197]
[1749164756296,3.26175232,2431.1,2431.0,4.11353352]
[1749164756478,13.72926636,2431.1,2431.0,4.11353352]
[1749164756686,12.65184372,2431.1,2430.9,4.11360378]
[1749164756853,12.65184372,2431.1,2430.8,4.11381394]
[1749164756854,0.9797341,2431.0,2430.8,4.11373861]
[1749164757053,12.30493945,2430.9,2430.8,4.11373861]
[1749164757361,9.8497341,2430.9,2430.6,4.11406371]
[1749164757559,0.9797341,2430.8,2430.6,20.11406371]
[1749164757760,1.59560879,2430.7,2430.6,20.11406371]
[1749164758087,1.36465573,2430.7,2430.6,20.11406371]
[1749164758245,1.36465573,2430.7,2430.6,4.11406371]
[1749164758452,1.3637004,2430.7,2430.6,20.11406371]
[1749164758650,1.36369878,2430.7,2430.6,20.11406371]
[1749164758879,1.36370008,2430.7,2430.6,20.11406371]
[1749164759072,0.9797341,2430.7,2430.6,20.11406371]
[1749164759675,1.36370928,2430.7,2430.6,20.11406371]
[1749164760402,6.98835918,2430.7,2429.9,0.8314]
[1749164760606,6.98835918,2430.7,2429.8,4.11553459]
[1749164760607,2.45841885,2430.0,2429.8,4.11553459]
[1749164760810,10.44715295,2429.9,2429.7,4.11560945]
[1749164761010,1.2363153,2429.9,2429.8,4.11556506]
[1749164761324,7.99351056,2429.9,2429.6,4.11581677]
[1749164761526,2.45640943,2429.7,2429.6,20.11581677]
[1749164761729,3.82335046,2429.7,2429.6,20.11581677]
[1749164762025,2.59480259,2429.7,2429.6,20.88021677]
[1749164762174,8.37887338,2429.7,2429.6,20.88021677]
[1749164762377,8.37889292,2429.7,2429.6,20.88021677]
[1749164762678,9.22337212,2429.7,2429.6,4.88021677]
[1749164762912,10.01560054,2429.7,2429.6,4.88021677]
[1749164763217,10.02460054,2429.7,2429.6,4.88021677]
[1749164763517,10.02460054,2429.7,2429.6,4.11581677]
[1749164763718,9.64165931,2429.7,2429.6,4.11581677]
[1749164764217,1.36644309,2429.7,2429.6,4.88791677]
[1749164764514,8.00651056,2429.7,2429.6,4.88791677]
[1749164764720,8.00651056,2429.7,2429.6,4.11581677]
[1749164764721,10.57952179,2429.7,2429.6,4.11581677]
[1749164764919,8.97087649,2429.7,2429.6,4.11581677]
[1749164765213,9.35384706,2429.7,2429.6,20.11581677]
[1749164765413,8.97087649,2429.7,2429.6,20.11581677]
[1749164765726,9.35303277,2429.7,2429.6,4.11581677]
[1749164765872,9.35303277,2429.7,2429.6,20.11581677]
[1749164766073,8.97087649,2429.7,2429.6,20.11581677]
[1749164766270,11.42694432,2429.7,2429.4,4.1160929]
[1749164766520,4.33666604,2429.6,2429.4,4.1160929]
[1749164766683,1.36568518,2429.5,2429.4,4.1160929]
[1749164766881,3.82175871,2429.5,2429.4,4.1160929]
[1749164767100,3.43957839,2429.5,2429.4,4.1160929]
[1749164767310,2.78980376,2429.5,2429.4,4.1160929]
[1749164767529,5.62748159,2429.5,2428.6,4.94919861]
[1749164767690,2.81408765,2429.6,2429.5,4.11607326]
[1749164768029,13.26028606,2429.6,2429.5,4.11607326]
[1749164768231,13.64246565,2429.6,2429.1,16.0]
[1749164768393,1.63019792,2429.4,2429.3,20.11630135]
[1749164768589,0.8312,2429.3,2429.2,20.11652799]
[1749164768790,0.8312,2429.3,2428.5,0.8164]
[1749164768791,9.22405797,2429.3,2428.5,0.8164]
[1749164769123,1.63039934,2429.0,2428.9,20.11699768]
[1749164769290,1.63039934,2429.1,2429.0,20.11692054]
[1749164769628,11.94322673,2429.1,2429.0,20.11692054]
[1749164769843,10.31584451,2429.1,2429.0,20.11692054]
[1749164770035,2.58172404,2429.1,2429.0,20.11692054]
[1749164770188,8.01655176,2429.1,2429.0,20.11692054]
[1749164771026,0.97755176,2429.1,2429.0,20.92162054]
[1749164771228,1.22187953,2429.7,2429.5,20.11607326]
[1749164771526,1.22187953,2429.9,2429.8,20.11556506]
[1749164771716,1.22187953,2430.1,2430.0,20.11522633]
[1749164771893,8.01855595,2430.1,2430.0,20.11522633]
[1749164772291,0.97655595,2430.1,2430.0,20.11522633]
[1749164772515,8.01855595,2430.1,2430.0,20.11522633]
[1749164772713,9.1342995,2430.1,2430.0,20.11522633]
[1749164772914,11.52950983,2430.1,2430.0,16.0]
[1749164773225,10.30763962,2430.1,2430.0,16.0]
[1749164773530,14.00182947,2430.1,2430.0,20.11522633]
[1749164773917,14.00204103,2430.1,2430.0,20.11522633]
[1749164774116,2.1977458,2430.1,2430.0,20.11522633]
[1749164774318,8.02055595,2430.1,2430.0,20.11522633]
[1749164774497,9.2417458,2430.1,2430.0,20.11522633]
[1749164774825,8.40228911,2430.1,2430.0,20.11522633]
[1749164775025,8.02112982,2430.1,2430.0,20.11522633]
[1749164775329,8.40285465,2430.1,2430.0,20.11522633]
[1749164775524,10.58669362,2430.1,2430.0,20.11522633]
[1749164776145,10.20496879,2430.1,2430.0,20.11522633]
[1749164777051,2.1985421,2430.1,2430.0,20.11522633]
[1749164777347,8.40213881,2430.1,2430.0,20.11522633]
[1749164777750,8.40210515,2430.1,2430.0,20.11522633]
[1749164778061,9.2415421,2430.1,2430.0,20.11522633]
[1749164778414,9.62354174,2430.1,2430.0,20.11522633]
[1749164778642,8.01912982,2430.1,2430.0,20.11522633]
[1749164779138,9.2405421,2430.1,2430.0,20.11522633]
[1749164779328,9.62323256,2430.1,2430.0,20.11522633]
[1749164779533,8.40182164,2430.1,2430.0,20.11522633]
[1749164779852,9.33619301,2430.1,2430.0,20.11522633]
[1749164780258,10.96659235,2430.1,2430.0,20.11522633]
[1749164780618,9.71891088,2430.1,2429.9,4.11533457]
[1749164780819,2.58389143,2430.0,2429.9,20.11533457]
[1749164781019,2.69492309,2430.0,2429.9,20.11533457]
[1749164781348,2.31220522,2430.0,2429.9,20.11533457]
[1749164781551,2.69493966,2430.0,2429.9,20.11533457]
[1749164781751,2.31220522,2430.0,2429.9,20.11533457]
[1749164781951,3.53695302,2430.0,2429.9,20.11533457]
[1749164782143,2.69509954,2430.0,2429.9,20.11533457]
[1749164782654,4.32549888,2430.0,2429.6,4.1158093]
[1749164782834,1.63419428,2429.8,2429.7,4.11573445]
[1749164783030,2.99421842,2429.8,2429.7,4.11573445]
[1749164783242,2.6113241,2429.8,2429.7,4.11573445]
[1749164783641,2.99426716,2429.8,2429.7,4.11573445]
[1749164783947,2.99426935,2429.8,2429.7,4.11573445]
[1749164784147,4.53491042,2429.8,2429.7,4.11573445]
[1749164784358,4.53496686,2429.8,2429.7,4.11573445]
[1749164784661,4.15196517,2429.8,2429.5,4.11602805]
[1749164784863,1.63689846,2429.6,2429.5,16.0]
[1749164785041,5.79922812,2429.6,2428.8,0.7571]
[1749164785369,1.22780669,2429.4,2429.3,4.11641213]
[1749164785561,1.36117311,2429.4,2429.3,20.11641213]
[1749164785756,1.36117765,2429.4,2429.3,20.11641213]
[1749164785943,1.36117538,2429.4,2429.3,20.11641213]
[1749164786149,2.67432644,2429.4,2429.3,20.11641213]
[1749164786345,2.67432644,2429.4,2429.3,4.11641213]
[1749164786670,2.58998509,2429.4,2429.3,20.11641213]
[1749164786972,0.97712982,2429.4,2429.3,20.11641213]
[1749164787741,1.36115146,2429.4,2429.3,20.11641213]
[1749164787940,2.58996117,2429.4,2429.3,20.11641213]
[1749164788142,2.20593953,2429.4,2429.3,20.11641213]
[1749164788344,2.59017663,2429.4,2429.3,20.11641213]
[1749164788540,2.20593953,2429.4,2429.3,20.11641213]
[1749164788869,3.6444939,2429.4,2429.3,20.11641213]
[1749164789045,2.41568419,2429.4,2429.3,4.11641213]
[1749164789375,2.79993855,2429.4,2429.3,4.11641213]
[1749164789545,2.79986115,2429.4,2429.3,4.11641213]
[1749164789952,2.7998605,2429.4,2429.3,4.11641213]
[1749164790155,2.41568419,2429.4,2429.3,4.11641213]
[1749164791111,11.73897649,2429.4,2429.3,4.11641213]
[1749164791493,12.96887094,2429.4,2429.3,20.11641213]
[1749164791707,1.36139452,2429.4,2429.3,20.11641213]
[1749164792020,7.99312982,2429.4,2429.3,20.11641213]
[1749164792174,0.97712982,2429.4,2429.3,20.11641213]
[1749164792378,7.99312982,2429.4,2429.3,20.11641213]
[1749164792612,0.97712982,2429.4,2429.3,20.11641213]
[1749164792819,7.39819479,2429.4,2429.3,20.11641213]
[1749164792981,7.9,2429.8,2429.7,4.11573445]
[1749164793181,16.2811455,2429.8,2429.7,20.11573445]
[1749164793498,16.28115233,2429.8,2429.7,20.11573445]
[1749164793701,15.89687574,2429.8,2429.7,20.11573445]
[1749164793996,17.12677019,2429.8,2429.7,20.11573445]
[1749164794218,18.08973293,2429.8,2429.7,20.11573445]
[1749164794409,18.47401519,2429.8,2429.7,20.11573445]
[1749164794597,11.46101519,2429.8,2429.7,20.11573445]
[1749164794799,17.50805245,2429.8,2429.7,20.11573445]
[1749164794997,17.50804856,2429.8,2429.7,20.11573445]
[1749164795197,17.12377019,2429.8,2429.7,20.11573445]
[1749164795717,15.89387574,2429.8,2429.7,20.11573445]
[1749164796332,16.27803645,2429.8,2429.7,20.11573445]
[1749164796627,15.89387574,2429.8,2429.7,20.11573445]
[1749164796835,16.27814419,2429.8,2429.7,20.11573445]
[1749164796999,16.27814425,2429.8,2429.7,20.11573445]
[1749164797195,15.89387574,2429.8,2429.7,20.11573445]
[1749164797395,16.2681252,2429.8,2429.7,20.11573445]
[1749164797622,15.88387574,2429.8,2429.7,20.11573445]
[1749164797821,16.26812037,2429.8,2429.7,20.11573445]
[1749164797998,9.26812037,2429.8,2429.7,20.11573445]
[1749164798186,1.36815954,2429.8,2429.7,20.87863445]
[1749164798389,6.998,2429.8,2429.7,20.87863445]
[1749164798905,6.998,2429.8,2429.7,20.11573445]
[1749164799082,7.98189679,2429.8,2429.7,20.11573445]
[1749164799519,7.38227844,2429.8,2429.7,20.11573445]
[1749164800233,8.36485993,2429.8,2429.7,20.11573445]
[1749164800518,7.98024697,2429.8,2429.7,20.11573445]
[1749164801499,8.36491417,2429.8,2429.7,20.11573445]
[1749164802028,7.98024697,2429.8,2429.7,20.11573445]
[1749164802409,8.36492389,2429.8,2429.7,20.11573445]
[1749164802611,7.98024697,2429.8,2429.7,20.11573445]
[1749164803222,8.36491371,2429.8,2429.7,20.11573445]
[1749164803383,8.3652266,2429.8,2429.7,20.11573445]
[1749164803827,7.98055986,2429.8,2429.7,20.11573445]
[1749164803983,8.36518538,2429.8,2429.7,20.11573445]
[1749164804187,7.98055986,2429.8,2429.7,20.11573445]
[1749164804624,6.996,2429.8,2429.7,20.11573445]
[1749164805122,0.38461133,2429.8,2429.7,20.11573445]
[1749164805422,7.36361133,2429.8,2429.7,20.11573445]
[1749164805723,1.22989364,2430.2,2430.1,4.11505699]
[1749164805926,10.3273392,2430.2,2430.1,4.11505699]
[1749164806131,9.94265034,2430.2,2430.1,4.11505699]
[1749164806298,10.32734004,2430.2,2430.1,4.11505699]
[1749164806503,9.94265034,2430.2,2430.1,4.11505699]
[1749164806806,10.32733404,2430.2,2430.1,4.11505699]
[1749164806994,10.327334,2430.2,2430.1,4.11505699]
[1749164807321,9.94265034,2430.2,2430.1,4.11505699]
[1749164807522,8.7077567,2430.2,2430.1,4.11505699]
[1749164808390,10.32233348,2430.2,2430.1,4.11505699]
[1749164808590,9.09244118,2430.2,2430.1,4.11505699]
[1749164809224,9.09243522,2430.2,2430.1,4.11505699]
[1749164809449,9.09243531,2430.2,2430.1,4.11505699]
[1749164809631,8.7077567,2430.2,2430.1,4.11505699]
[1749164809795,0.98457879,2430.2,2430.1,20.11505699]
[1749164809986,9.821,2430.5,2430.4,4.11454904]
[1749164810186,18.15508565,2430.5,2430.4,20.11454904]
[1749164810386,21.77938487,2430.5,2430.1,4.11497975]
[1749164810628,3.65776113,2430.4,2430.2,20.11478838]
[1749164810815,2.59902882,2430.3,2430.1,4.11495961]
[1749164811010,1.46070598,2430.3,2430.2,4.11488766]
[1749164811229,9.17920467,2430.3,2430.2,4.11488766]
[1749164812006,9.56382691,2430.3,2430.2,4.11488766]
[1749164812522,9.56380719,2430.3,2430.2,4.11488766]
[1749164812695,11.85093147,2430.3,2430.2,4.11488766]
[1749164813421,11.85093147,2430.3,2430.1,4.11493607]
[1749164813623,0.98431103,2430.2,2429.7,0.7597]
[1749164813818,1.36891529,2430.1,2430.0,4.11510128]
[1749164814018,4.23338322,2430.1,2430.0,4.11510128]
[1749164814218,6.3217658,2430.1,2429.9,4.11535475]
[1749164814424,9.55290149,2430.0,2429.9,4.11535475]
[1749164814632,9.16820467,2430.0,2429.9,4.11535475]
[1749164814846,9.55290582,2430.0,2429.9,4.11535475]
[1749164815012,8.323005,2430.0,2429.9,4.11535475]
[1749164815213,9.55289816,2430.0,2429.9,4.11535475]
[1749164815421,1.36899883,2430.0,2429.9,20.11535475]
[1749164815621,8.32199883,2430.0,2429.9,20.11535475]
[1749164816031,8.32097389,2430.0,2429.9,20.11535475]
[1749164816231,7.93531103,2430.0,2429.9,20.11535475]
[1749164817255,9.55000754,2430.0,2429.9,20.11535475]
[1749164817550,9.55001058,2430.0,2429.9,20.11535475]
[1749164817749,9.55001076,2430.0,2429.9,20.11535475]
[1749164817930,9.55152488,2430.0,2429.9,20.11535475]
[1749164818125,9.16671879,2430.0,2429.9,20.11535475]
[1749164818342,9.55152393,2430.0,2429.9,20.11535475]
[1749164818545,9.16671879,2430.0,2429.9,20.11535475]
[1749164818918,9.55152383,2430.0,2429.9,20.11535475]
[1749164819119,9.55152382,2430.0,2429.9,20.11535475]
[1749164819320,9.78314147,2430.0,2429.9,20.11535475]
[1749164819555,9.16671879,2430.0,2429.9,20.11535475]
[1749164820046,9.39804275,2430.0,2429.9,20.11535475]
[1749164820354,8.32130535,2430.0,2429.9,20.11535475]
[1749164820523,9.98786857,2430.0,2429.9,20.11535475]
[1749164820719,8.55263069,2430.0,2429.9,20.11535475]
[1749164821263,8.55425112,2430.0,2429.9,20.11535475]
[1749164821471,8.16871058,2430.0,2429.9,4.11535475]
[1749164821779,8.16871058,2430.0,2429.5,4.88366278]
[1749164821780,7.3471725,2429.9,2428.8,6.03814486]
[1749164822001,1.64420602,2429.6,2429.5,4.11605671]
[1749164822134,10.18256618,2429.6,2429.5,4.11605671]
[1749164822454,10.18256791,2429.6,2429.5,4.11605671]
[1749164822671,2.473,2429.4,2428.5,0.7532]
[1749164822982,1.23324113,2428.9,2428.6,4.11759861]
[1749164823269,3.70451483,2428.7,2428.2,0.7532]
[1749164823565,1.60281488,2428.6,2428.4,4.11782391]
[1749164823733,0.8282,2428.4,2427.4,0.8215]
[1749164823933,2.83434655,2428.3,2427.8,4.11884923]
[1749164824138,10.19473143,2428.2,2427.6,4.11929477]
[1749164824326,10.19473143,2428.2,2427.5,16.2366675]
[1749164824327,1.36970811,2428.1,2427.8,4.11883055]
[1749164824542,0.7775,2427.9,2427.7,4.11904921]
[1749164824745,7.93738538,2427.8,2427.7,4.11904921]
[1749164824951,7.93738538,2427.8,2427.6,4.11922803]
[1749164825153,6.951,2427.8,2427.6,4.11922803]
[1749164825337,6.951,2427.8,2426.8,4.12065271]
[1749164825338,0.55,2427.7,2426.8,4.12065271]
[1749164825523,4.61441679,2427.6,2427.5,4.11946446]
[1749164825729,2.19242295,2427.6,2427.5,4.11946446]
[1749164826046,1.36979411,2427.7,2427.6,4.11929477]
[1749164826226,1.36979411,2427.7,2427.5,4.11946446]
[1749164826227,8.838,2427.7,2427.2,0.7662]
[1749164826565,8.838,2427.7,2427.6,20.11929477]
[1749164826765,8.838,2427.7,2427.6,4.11929477]
[1749164827064,8.838,2427.7,2427.5,4.11939587]
[1749164827237,8.838,2427.7,2427.5,4.11945751]
[1749164827437,0.3832336,2427.6,2427.5,4.11945751]
[1749164827764,8.838,2427.7,2427.5,4.11945751]
[1749164827964,0.8838,2427.6,2427.5,4.11945751]
[1749164828681,0.8838,2427.6,2426.5,4.12110586]
[1749164828884,0.8838,2427.6,2427.4,4.11961302]
[1749164829090,0.8838,2427.6,2427.5,4.11946446]
[1749164829875,0.8226,2427.9,2427.8,4.11895543]
[1749164830275,8.895,2428.2,2428.1,20.11844652]
[1749164830522,2.22377512,2428.6,2428.5,4.11776816]
[1749164830703,0.40235847,2428.7,2428.6,4.11759861]
[1749164830907,9.773,2428.9,2428.8,4.11725955]
[1749164831085,8.899,2429.2,2429.1,4.11675106]
[1749164831086,9.7108,2429.2,2429.1,4.11675106]
[1749164831264,10.772,2429.2,2429.1,4.11675106]
[1749164831609,1.873,2429.3,2429.2,4.11658159]
[1749164831819,0.8118,2429.8,2429.6,4.11574728]
[1749164831989,8.91192612,2429.7,2429.6,4.11574728]
[1749164832303,9.88429873,2429.7,2428.6,4.91420493]
[1749164832468,0.06600683,2429.6,2429.4,4.11621407]
[1749164832665,0.06600683,2429.6,2429.3,4.11639118]
[1749164832666,0.06600683,2429.6,2429.5,4.11607326]
[1749164833168,8.91200683,2429.6,2429.3,4.11633825]
[1749164833369,1.63571571,2429.5,2429.4,4.11624269]
[1749164834003,0.06600683,2429.6,2429.5,4.11607326]
[1749164834225,8.85,2429.6,2429.5,4.11607326]
[1749164834672,0.55,2429.5,2428.7,4.11742907]
[1749164835004,7.9951503,2429.4,2429.3,4.11641213]
[1749164835304,9.77283219,2429.4,2429.3,4.11641213]
[1749164835887,2.32768189,2429.4,2429.3,4.11641213]
[1749164836305,1.77768189,2429.4,2429.3,4.11641213]
[1749164836529,7.9,2429.5,2429.4,4.11624269]
[1749164836704,16.749,2429.5,2429.4,4.11624269]
[1749164836905,17.13054443,2429.5,2429.4,4.11624269]
[1749164837233,16.747,2429.5,2429.4,4.11624269]
[1749164837728,18.4217,2429.5,2429.4,4.11624269]
[1749164837949,18.4217,2429.5,2428.9,0.8155]
[1749164838100,18.4217,2429.5,2429.2,4.11649534]
[1749164838297,2.473,2429.4,2429.2,4.11649534]
[1749164838601,0.38182514,2429.4,2429.2,4.11649534]
[1749164838797,1.88035251,2429.4,2429.1,4.11674092]
[1749164839041,2.26217814,2429.4,2429.3,4.11641213]
[1749164839216,8.85435251,2429.4,2429.2,4.11654551]
[1749164839614,9.23617505,2429.4,2429.2,4.11654551]
[1749164839932,9.23617216,2429.4,2429.2,4.11654551]
[1749164840133,2.06838722,2429.3,2429.2,4.11654551]
[1749164840633,2.06838722,2429.3,2428.9,16.0]
[1749164840634,0.8135,2429.2,2428.9,4.11698402]
[1749164840801,0.8135,2429.2,2428.8,4.1171835]
[1749164840998,9.58267377,2429.1,2428.3,0.8146]
[1749164841333,9.58267377,2429.1,2428.6,4.11750377]
[1749164841334,14.876,2429.0,2428.6,4.11750377]
[1749164841535,1.873,2428.9,2428.5,4.11768247]
[1749164841841,3.23190359,2428.9,2428.6,4.11758134]
[1749164842009,3.23190359,2428.9,2428.7,4.11740231]
[1749164842010,2.22246521,2428.8,2428.7,4.11740231]
[1749164842333,9.19646521,2428.8,2428.7,4.11740231]
[1749164842833,1.34,2428.7,2427.9,0.8146]
[1749164843005,7.9951503,2428.5,2428.1,4.11836635]
[1749164843206,0.55,2428.3,2428.2,20.11827691]
[1749164843412,8.28228472,2428.4,2428.3,4.11810731]
[1749164843623,16.753,2428.4,2428.3,4.11810731]
[1749164843845,19.11145183,2428.4,2428.3,4.11810731]
[1749164844041,19.11148291,2428.4,2428.3,4.11810731]
[1749164844209,18.72916711,2428.4,2428.3,4.11810731]
[1749164844942,19.11168586,2428.4,2428.3,4.11810731]
[1749164845516,18.72916711,2428.4,2428.3,4.11810731]
[1749164845736,19.11179392,2428.4,2428.3,4.11810731]
[1749164845936,18.72916711,2428.4,2428.3,4.11810731]
[1749164846640,19.11180183,2428.4,2428.3,4.11810731]
[1749164847166,19.11180754,2428.4,2428.3,4.11810731]
[1749164847438,18.72916711,2428.4,2428.3,4.11810731]
[1749164848142,19.11180137,2428.4,2428.3,4.11810731]
[1749164848325,20.08980296,2428.4,2428.2,4.1181827]
[1749164848533,5.84261613,2428.3,2428.2,4.1181827]
[1749164848845,5.84263558,2428.3,2428.2,4.11827691]
[1749164849040,5.84269717,2428.3,2428.2,4.11827691]
[1749164849215,5.45998172,2428.3,2428.2,4.11827691]
[1749164850221,3.37013978,2428.3,2428.2,4.11827691]
[1749164850623,12.22813964,2428.3,2428.2,4.11827691]
[1749164851033,11.84498172,2428.3,2428.2,4.11827691]
[1749164851276,0.97800144,2428.3,2428.2,4.11827691]
[1749164851452,3.11294281,2428.8,2428.5,20.11776816]
[1749164851742,7.9,2429.0,2428.9,20.11709004]
[1749164851941,1.36360311,2429.1,2429.0,20.11692054]
[1749164852167,6.991,2429.1,2429.0,20.11692054]
[1749164853331,8.4801,2429.1,2429.0,20.11692054]
[1749164853534,9.84384767,2429.1,2429.0,20.11692054]
[1749164854355,8.35467031,2429.1,2429.0,20.11692054]
[1749164854535,9.85355903,2429.1,2429.0,20.11692054]
[1749164855037,9.85255903,2429.1,2429.0,20.11692054]
[1749164855263,10.23566405,2429.1,2429.0,20.11692054]
[1749164855733,10.23571396,2429.1,2429.0,20.11692054]
[1749164855943,11.05292746,2429.1,2429.0,20.11692054]
[1749164856363,10.23571907,2429.1,2429.0,20.11692054]
[1749164856559,9.85255903,2429.1,2429.0,20.11692054]
[1749164856952,10.23609667,2429.1,2429.0,20.11692054]
[1749164857157,10.22909431,2429.1,2429.0,20.11692054]
[1749164857676,0.38316171,2429.1,2429.0,20.11692054]
[1749164857875,3.71789954,2429.7,2429.0,20.11692054]
[1749164857876,3.11316575,2429.7,2429.6,4.11590385]
[1749164858077,3.11316575,2429.7,2429.2,16.0]
[1749164858078,12.38861297,2429.7,2429.2,16.0]
[1749164858288,10.49177303,2429.6,2429.4,4.11624012]
[1749164858505,9.57377303,2429.5,2428.9,16.0]
[1749164858701,4.36219224,2429.4,2429.2,4.11644717]
[1749164858904,7.96209866,2429.3,2429.2,20.11658159]
[1749164859222,7.96209866,2429.3,2429.2,4.11658159]
[1749164859374,9.57279737,2429.3,2429.2,4.11658159]
[1749164859580,9.57279958,2429.3,2429.2,4.11658159]
[1749164859892,11.52504696,2429.3,2429.2,4.11658159]
[1749164860414,11.90885009,2429.3,2429.2,4.11658159]
[1749164860620,11.90884955,2429.3,2429.2,4.11658159]
[1749164860969,11.9088562,2429.3,2429.2,4.11658159]
[1749164861868,11.90880739,2429.3,2429.2,4.11658159]
[1749164862101,11.90880673,2429.3,2429.2,4.11658159]
[1749164862306,11.52504696,2429.3,2429.2,4.11658159]
[1749164862803,11.9088195,2429.3,2429.2,4.11658159]
[1749164862969,11.90881219,2429.3,2429.2,4.11658159]
[1749164863794,11.90881578,2429.3,2429.2,4.11658159]
[1749164863997,11.52504696,2429.3,2429.2,4.11658159]
[1749164864209,4.92782069,2429.3,2429.2,4.11658159]
[1749164864412,11.89180706,2429.3,2429.2,4.11658159]
[1749164864711,11.89182695,2429.3,2429.2,4.11658159]
[1749164865280,11.89190031,2429.3,2429.2,4.11658159]
[1749164865493,11.50804696,2429.3,2429.2,4.11658159]
[1749164865901,11.89188677,2429.3,2429.2,4.11658159]
[1749164866135,10.28115122,2429.3,2429.2,4.11658159]
[1749164866339,11.50804696,2429.3,2429.2,4.11658159]
[1749164866655,11.89188477,2429.3,2429.2,4.11658159]
[1749164867115,11.89189276,2429.3,2429.2,4.11658159]
[1749164867448,10.66498949,2429.3,2429.2,4.11658159]
[1749164867639,11.50804696,2429.3,2429.2,4.11658159]
[1749164867834,11.89189194,2429.3,2429.2,4.11658159]
[1749164868150,11.89184017,2429.3,2429.2,4.11658159]
[1749164868347,14.36484017,2429.3,2429.2,4.11658159]
[1749164868560,14.36483298,2429.3,2429.2,4.11658159]
[1749164868716,14.36488641,2429.3,2429.2,4.11658159]
[1749164869027,13.98104696,2429.3,2429.2,4.11658159]
[1749164869773,12.75415122,2429.3,2429.2,4.11658159]
[1749164869962,13.13798864,2429.3,2429.2,4.11658159]
[1749164870610,13.13799321,2429.3,2429.2,4.11658159]
[1749164870815,13.13799411,2429.3,2429.2,4.11658159]
[1749164871026,12.75415122,2429.3,2429.2,4.11658159]
[1749164871225,13.13799097,2429.3,2429.2,4.11658159]
[1749164871650,12.75415122,2429.3,2429.2,4.11658159]
[1749164871856,13.13789513,2429.3,2429.2,4.11658159]
[1749164872351,14.64115122,2429.3,2429.2,4.11658159]
[1749164872959,0.98109866,2429.3,2429.2,20.94078159]
[1749164873142,6.943,2429.3,2429.2,20.94078159]
[1749164873464,7.9,2429.5,2429.4,20.11624269]
[1749164873686,16.21170212,2429.5,2429.4,20.11624269]
[1749164873892,20.87413643,2429.5,2428.9,0.7588]
[1749164874179,1.36671859,2429.4,2429.3,20.11626701]
[1749164874380,0.98276622,2429.4,2429.3,20.11626701]
[1749164874586,3.19286944,2429.4,2429.3,20.11626701]
[1749164875158,10.20275357,2429.4,2429.3,20.11626701]
[1749164875485,1.36675357,2429.4,2429.3,20.11626701]
[1749164875683,7.93276622,2429.4,2429.3,20.11626701]
[1749164875869,1.36702976,2429.4,2429.3,20.11626701]
[1749164876076,7.93676622,2429.4,2429.3,20.11626701]
[1749164876489,8.32102917,2429.4,2429.3,20.11626701]
[1749164876687,8.32102942,2429.4,2429.3,20.11626701]
[1749164877361,8.32103386,2429.4,2429.3,20.11626701]
[1749164877581,7.93676622,2429.4,2429.3,20.11626701]
[1749164877793,8.32105033,2429.4,2429.3,20.11626701]
[1749164878007,8.32104805,2429.4,2429.3,20.11626701]
[1749164878213,8.32103238,2429.4,2429.3,20.11626701]
[1749164878357,10.7940355,2429.4,2429.3,20.11626701]
[1749164878569,8.3120355,2429.4,2429.3,20.11626701]
[1749164878919,1.3670355,2429.4,2429.3,20.89626701]
[1749164879116,0.38554782,2429.4,2429.3,20.89626701]
[1749164879279,7.9,2430.0,2429.9,4.11539569]
[1749164879484,7.93448019,2430.0,2429.9,20.11539569]
[1749164879801,7.93448019,2430.0,2429.8,4.11548684]
[1749164879802,10.8425655,2430.0,2429.8,4.11548684]
[1749164880003,2.21517592,2429.9,2429.8,20.11548684]
[1749164880309,0.98448019,2429.9,2429.8,20.11548684]
[1749164880477,4.86558934,2429.9,2429.8,20.11548684]
[1749164880804,7.33816467,2429.9,2429.5,4.11602283]
[1749164880971,1.2317525,2429.6,2429.5,20.11597811]
[1749164881205,11.45772351,2429.6,2429.5,20.11597811]
[1749164881941,11.84284635,2429.6,2429.5,20.11597811]
[1749164882128,12.07391965,2429.6,2429.5,20.11597811]
[1749164882436,11.84279237,2429.6,2429.5,20.11597811]
[1749164882638,6.9838689,2429.6,2429.5,20.11597811]
[1749164882812,12.05550404,2429.6,2429.5,20.11597811]
[1749164883014,11.67042714,2429.6,2429.5,20.11597811]
[1749164883616,12.05548817,2429.6,2429.5,20.11597811]
[1749164883818,3.23148946,2429.6,2429.5,20.11597811]
[1749164884015,11.42353791,2429.6,2429.5,20.11597811]
[1749164884339,11.03847559,2429.6,2429.5,20.11597811]
[1749164884501,11.42346683,2429.6,2429.5,20.11597811]
[1749164884700,11.42346698,2429.6,2429.5,20.11597811]
[1749164884913,11.03847559,2429.6,2429.5,20.11597811]
[1749164885113,12.71484393,2429.6,2429.5,20.11597811]
[1749164885300,11.71276407,2429.6,2429.5,20.11597811]